fUSD/lending_fUSD_20240409
["ID","MTS","AMOUNT","RATE_DAILY","PERIOD"]
[321976508,1712668250040,-500.0,0.00020672,2]
[321976509,1712668250049,-8263.47,0.00020672,2]
[321976510,1712668250059,-4655.68,0.00020672,2]
[321976511,1712668250067,-1236.09,0.00020672,2]
[321976512,1712668250077,-2611.62,0.00020672,2]
[321976513,1712668250088,-1118.52,0.00020672,2]
[321976514,1712668250098,-500.0,0.00020672,2]
[321976515,1712668250109,-1406.43,0.00020672,2]
[321976516,1712668250118,-3063.42,0.00020672,2]
[321976517,1712668250128,-1500.35,0.00020672,2]
[321976518,1712668250137,-3470.37,0.00020672,2]
[321976519,1712668250146,-2135.45,0.00020672,2]
[321976520,1712668250155,-500.0,0.00020672,2]
[321976521,1712668250165,-5200.6,0.00020672,2]
[321976522,1712668250175,-500.0,0.00020672,2]
[321976523,1712668250185,-3344.0,0.00020672,2]
[321976524,1712668250195,-500.0,0.00020672,2]
[321976525,1712668250204,-500.0,0.00020672,2]
[321976526,1712668250214,-8487.11,0.00020672,2]
[321976527,1712668250226,-2721.98,0.00020672,2]
[321976528,1712668250235,-639.71793041,0.00020672,2]
[321976529,1712668250245,-4452.5,0.00020672,2]
[321976530,1712668250254,-663.96,0.00020672,2]
[321976531,1712668250263,-2050.42,0.00020672,2]
[321976532,1712668250273,-877.62,0.00020672,2]
[321976533,1712668250283,-5966.26,0.00020672,2]
[321976534,1712668250293,-816.82,0.00020672,2]
[321976535,1712668250303,-4132.53,0.00020672,2]
[321976536,1712668250312,-13924.47,0.00020672,2]
[321976537,1712668250322,-1573.87,0.00020672,2]
[321976538,1712668250332,-2369.93,0.00020672,2]
[321976539,1712668250342,-555.4,0.00020672,2]
[321976540,1712668250351,-2734.65,0.00020672,2]
[321976541,1712668250360,-500.0,0.00020672,2]
[321976542,1712668250370,-1567.24,0.00020672,2]
[321976543,1712668250380,-1022.91,0.00020672,2]
[321976544,1712668250390,-2529.58,0.00020672,2]
[321976545,1712668250401,-2556.79,0.00020672,2]
[321976546,1712668250410,-976.45,0.00020672,2]
[321976547,1712668250420,-2490.65,0.00020672,2]
[321976548,1712668250429,-524.42,0.00020672,2]
[321976549,1712668250438,-2710.75,0.00020672,2]
[321976550,1712668250447,-2595.71,0.00020672,2]
[321976551,1712668250457,-2001.41,0.00020672,2]
[321976552,1712668250466,-3076.74,0.00020672,2]
[321976553,1712668250476,-5485.04,0.00020672,2]
[321976554,1712668250485,-3892.94,0.00020672,2]
[321976555,1712668250494,-791.6,0.00020672,2]
[321976556,1712668250504,-3013.78,0.00020672,2]
[321976557,1712668250513,-2837.01,0.00020672,2]
[321976558,1712668250523,-1609.86,0.00020672,2]
[321976559,1712668250533,-4949.31,0.00020672,2]
[321976560,1712668250543,-1069.06,0.00020672,2]
[321976561,1712668250552,-3644.82,0.00020672,2]
[321976562,1712668250561,-7945.61,0.00020672,2]
[321976563,1712668250571,-8384.9,0.00020672,2]
[321976564,1712668250581,-1059.15,0.00020672,2]
[321976565,1712668250591,-3371.45,0.00020672,2]
[321976566,1712668250601,-6303.74,0.00020672,2]
[321976567,1712668250610,-791.32,0.00020672,2]
[321976568,1712668250852,-6756.42,0.00020672,2]
[321976569,1712668250862,-1337.03,0.00020673,2]
[321976570,1712668250873,-770.55,0.00020673,2]
[321976571,1712668250882,-1166.37,0.00020673,2]
[321976572,1712668250891,-733.05,0.00020673,2]
[321976573,1712668250901,-500.0,0.00020673,2]
[321976574,1712668250910,-500.0,0.00020673,2]
[321976575,1712668250920,-873.95,0.00020673,2]
[321976576,1712668250930,-500.0,0.00020673,2]
[321976577,1712668250940,-756.24,0.00020673,2]
[321976578,1712668250949,-638.66,0.00020673,2]
[321976579,1712668250959,-1109.59,0.00020673,2]
[321976580,1712668250968,-500.0,0.00020673,2]
[321976581,1712668250978,-1200.72,0.00020673,2]
[321976582,1712668250988,-1913.96,0.00020673,2]
[321976583,1712668250998,-525.46,0.00020673,2]
[321976584,1712668251008,-500.0,0.00020673,2]
[321976585,1712668251017,-500.0,0.00020673,2]
[321976586,1712668251026,-1046.71,0.00020673,2]
[321976587,1712668251036,-886.58,0.00020673,2]
[321976588,1712668251045,-1004.42,0.00020673,2]
[321976589,1712668251055,-849.53,0.00020673,2]
[321976590,1712668251064,-9677.33,0.00020673,2]
[321976591,1712668251074,-2273.57,0.00020673,2]
[321976592,1712668251084,-500.0,0.00020673,2]
[321976593,1712668251093,-894.54,0.00020673,2]
[321976594,1712668251104,-3379.81,0.00020673,2]
[321976595,1712668251114,-29814.31,0.00020673,2]
[321976596,1712668251123,-2629.88,0.00020673,2]
[321976597,1712668251133,-1118.52,0.00020673,2]
[321976598,1712668251142,-1903.44,0.00020673,2]
[321976599,1712668251152,-2917.47,0.00020673,2]
[321976600,1712668251162,-1435.49,0.00020673,2]
[321976601,1712668251172,-500.0,0.00020673,2]
[321976602,1712668251182,-660.9,0.00020673,2]
[321976603,1712668251192,-500.0,0.00020673,2]
[321976604,1712668251201,-608.31,0.00020673,2]
[321976605,1712668251211,-500.0,0.00020673,2]
[321976606,1712668251220,-664.18,0.00020673,2]
[321976607,1712668251231,-555.4,0.00020673,2]
[321976608,1712668251241,-742.55,0.00020673,2]
[321976609,1712668251251,-1506.11,0.00020673,2]
[321976610,1712668251260,-896.75,0.00020673,2]
[321976611,1712668251271,-1535.17,0.00020673,2]
[321976612,1712668251281,-1349.55,0.00020673,2]
[321976613,1712668251291,-500.0,0.00020673,2]
[321976614,1712668251301,-1257.0,0.00020673,2]
[321976615,1712668251311,-513.96995683,0.00020674,2]
[321976616,1712668251321,-510.79813592,0.00020674,2]
[321976617,1712668251331,-500.0,0.00020674,2]
[321976618,1712668251340,-462.48787547,0.00020674,2]
[321976619,1712668251350,-723.35,0.00020674,2]
[321976620,1712668251360,-500.0,0.00020674,2]
[321976621,1712668251369,-389.40146092,0.00020674,2]
[321976622,1712668251379,-500.0,0.00020674,2]
[321976623,1712668251389,-621.94354114,0.00020674,2]
[321976624,1712668251399,-500.0,0.00020674,2]
[321976625,1712668251408,-638.35,0.00020674,2]
[321976626,1712668251418,-500.0,0.00020674,2]
[321976627,1712668251428,-500.0,0.00020674,2]
[321976628,1712668251438,-500.0,0.00020674,2]
[321976629,1712668251448,-500.0,0.00020674,2]
[321976630,1712668251457,-500.0,0.00020674,2]
[321976631,1712668251467,-303.18832637,0.00020674,2]
[321976632,1712668251478,-500.0,0.00020674,2]
[321976633,1712668251487,-634.48,0.00020674,2]
[321976634,1712668251497,-500.0,0.00020674,2]
[321976635,1712668251507,-500.0,0.00020674,2]
[321976636,1712668251516,-307.42929579,0.00020674,2]
[321976637,1712668251525,-511.41,0.00020674,2]
[321976638,1712668251535,-574.16598684,0.00020674,2]
[321976639,1712668251545,-500.0,0.00020674,2]
[321976640,1712668251554,-500.0,0.00020674,2]
[321976641,1712668251575,-500.0,0.00020674,2]
[321976642,1712668251585,-500.0,0.00020674,2]
[321976643,1712668251594,-583.92,0.00020674,2]
[321976644,1712668251604,-562.23,0.00020674,2]
[321976645,1712668251613,-526.19,0.00020674,2]
[321976646,1712668251623,-500.0,0.00020674,2]
[321976647,1712668251632,-500.0,0.00020674,2]
[321976648,1712668251642,-500.0,0.00020674,2]
[321976649,1712668251652,-507.51,0.00020674,2]
[321976650,1712668251662,-500.0,0.00020674,2]
[321976651,1712668251672,-1022.22,0.00020674,2]
[321976652,1712668251683,-586.96,0.00020674,2]
[321976653,1712668251693,-1604.05,0.00020674,2]
[321976654,1712668251703,-917.0,0.00020674,2]
[321976655,1712668251713,-500.0,0.00020674,2]
[321976656,1712668251725,-500.0,0.00020674,2]
[321976657,1712668251736,-509.25,0.00020674,2]
[321976658,1712668251746,-500.0,0.00020674,2]
[321976659,1712668251756,-500.0,0.00020674,2]
[321976660,1712668251766,-473.4805789,0.00020674,2]
[321976661,1712668251777,-500.0,0.00020674,2]
[321976662,1712668251787,-611.84,0.00020674,2]
[321976663,1712668251797,-503.39344001,0.00020674,2]
[321976664,1712668251807,-500.0,0.00020674,2]
[321976665,1712668251818,-500.0,0.00020674,2]
[321976666,1712668251827,-500.0,0.00020674,2]
[321976667,1712668251837,-500.0,0.00020674,2]
[321976668,1712668251846,-500.0,0.00020674,2]
[321976669,1712668251855,-500.0,0.00020674,2]
[321976670,1712668251865,-500.0,0.00020674,2]
[321976671,1712668251875,-500.0,0.00020674,2]
[321976672,1712668251884,-693.48,0.00020674,2]
[321976673,1712668251894,-673.26,0.00020674,2]
[321976674,1712668251904,-500.0,0.00020674,2]
[321976675,1712668251914,-1125.14,0.00020674,2]
[321976676,1712668251924,-500.0,0.00020674,2]
[321976677,1712668251934,-500.0,0.00020674,2]
[321976678,1712668251944,-500.0,0.00020674,2]
[321976679,1712668251954,-612.96,0.00020674,2]
[321976680,1712668251964,-500.0,0.00020674,2]
[321976681,1712668251976,-500.0,0.00020674,2]
[321976682,1712668251986,-500.0,0.00020674,2]
[321976683,1712668251996,-500.0,0.00020674,2]
[321976684,1712668252005,-1597.43,0.00020674,2]
[321976685,1712668252016,-500.0,0.00020674,2]
[321976686,1712668252026,-500.0,0.00020674,2]
[321976687,1712668252036,-500.0,0.00020674,2]
[321976688,1712668252046,-500.0,0.00020674,2]
[321976689,1712668252056,-500.0,0.00020674,2]
[321976690,1712668252067,-709.16,0.00020674,2]
[321976691,1712668252076,-500.0,0.00020674,2]
[321976692,1712668252087,-304.57550509,0.00020674,2]
[321976693,1712668252104,-574.74,0.00020674,2]
[321976694,1712668252114,-1574.48,0.00020674,2]
[321976695,1712668252124,-500.0,0.00020674,2]
[321976696,1712668252135,-500.0,0.00020674,2]
[321976697,1712668252145,-662.06,0.00020674,2]
[321976698,1712668252155,-365.65689737,0.00020674,2]
[321976699,1712668252164,-500.0,0.00020674,2]
[321976700,1712668252176,-549.69,0.00020674,2]
[321976701,1712668252186,-500.0,0.00020674,2]
[321976702,1712668252196,-1310.33,0.00020674,2]
[321976703,1712668252206,-500.0,0.00020674,2]
[321976704,1712668252216,-500.0,0.00020674,2]
[321976705,1712668252227,-500.0,0.00020674,2]
[321976706,1712668252237,-512.79,0.00020674,2]
[321976707,1712668252247,-918.73,0.00020674,2]
[321976708,1712668252256,-1313.82,0.00020674,2]
[321976709,1712668252267,-908.61,0.00020674,2]
[321976710,1712668252277,-687.42,0.00020674,2]
[321976711,1712668252287,-500.0,0.00020674,2]
[321976712,1712668252297,-959.65,0.00020674,2]
[321976713,1712668252306,-500.0,0.00020674,2]
[321976714,1712668252316,-500.0,0.00020674,2]
[321976715,1712668252326,-500.0,0.00020674,2]
[321976716,1712668252336,-500.0,0.00020674,2]
[321976717,1712668252345,-921.72,0.00020674,2]
[321976718,1712668252355,-1236.5,0.00020674,2]
[321976719,1712668252365,-543.56,0.00020674,2]
[321976720,1712668252375,-685.67,0.00020674,2]
[321976721,1712668252384,-1390.44,0.00020674,2]
[321976722,1712668252393,-500.0,0.00020674,2]
[321976723,1712668252403,-502.89,0.00020674,2]
[321976724,1712668252412,-500.0,0.00020674,2]
[321976725,1712668252421,-500.0,0.00020674,2]
[321976726,1712668252430,-541.16,0.00020674,2]
[321976727,1712668252439,-2110.98,0.00020674,2]
[321976728,1712668252449,-500.0,0.00020674,2]
[321976729,1712668252458,-631.74,0.00020674,2]
[321976730,1712668252467,-500.0,0.00020674,2]
[321976731,1712668252479,-500.0,0.00020674,2]
[321976732,1712668252489,-500.0,0.00020674,2]
[321976733,1712668252498,-500.0,0.00020674,2]
[321976734,1712668252508,-713.36,0.00020674,2]
[321976735,1712668252517,-500.0,0.00020674,2]
[321976736,1712668252526,-670.89,0.00020674,2]
[321976737,1712668252535,-512.03,0.00020674,2]
[321976738,1712668252545,-500.0,0.00020674,2]
[321976739,1712668252555,-500.0,0.00020674,2]
[321976740,1712668252566,-510.87209807,0.00020674,2]
[321976741,1712668252601,-799.28,0.00020499,2]
[321976742,1712668252611,-418.87790193,0.00020674,2]
[321976743,1712668252620,-500.0,0.00020674,2]
[321976744,1712668252630,-500.0,0.00020674,2]
[321976745,1712668252639,-500.0,0.00020674,2]
[321976746,1712668252649,-500.0,0.00020674,2]
[321976747,1712668252658,-991.92,0.00020674,2]
[321976748,1712668252667,-500.0,0.00020674,2]
[321976749,1712668252676,-477.74265229,0.00020674,2]
[321976750,1712668351879,6000.0,0.00027,30]
[321976751,1712668366879,209.89,0.00019714,10]
[321976752,1712668367091,209.89,0.00021646,10]
[321976753,1712668372579,2256.3214625,0.00015506,2]
[321976754,1712668446460,1371.67568401,0.00015506,2]
[321976755,1712668462066,1182.61262856,0.00015506,2]
[321976756,1712668574940,151.0,0.00027991,120]
[321976757,1712668645800,452.49,0.00017311,2]
[321976758,1712668649747,221.0,0.00032772,120]
[321976759,1712668651686,151.099999,0.00032772,30]
[321976760,1712668658915,3000.0,0.00032772,30]
[321976761,1712668660938,1140.96,0.00032772,30]
[321976762,1712668662204,2528.0,0.00032772,30]
[321976763,1712668669706,187.0,0.00032772,30]
[321976764,1712668670993,187.0,0.00032772,30]
[321976765,1712668672410,187.0,0.00032772,30]
[321976766,1712668673313,908.4407,0.00032772,30]
[321976767,1712668675451,202.0,0.00032772,30]
[321976768,1712668679273,404.34267834,0.00032772,120]
[321976769,1712668680167,387.32130172,0.00032772,30]
[321976770,1712668680218,221.19646866,0.00032772,30]
[321976771,1712668687918,3000.0,0.00032772,30]
[321976772,1712668703157,289.0,0.00032772,120]
[321976773,1712668710168,1000.0,0.00032772,30]
[321976774,1712668710858,1000.0,0.00032772,30]
[321976775,1712668711612,1000.0,0.00032772,30]
[321976776,1712668712114,1000.0,0.00032772,30]
[321976777,1712668712964,1000.0,0.00032772,30]
[321976778,1712668713671,1000.0,0.00032772,30]
[321976779,1712668714117,1000.0,0.00032772,30]
[321976780,1712668715023,1000.0,0.00032772,30]
[321976781,1712668715607,1000.0,0.00032772,30]
[321976782,1712668716166,1000.0,0.00032772,30]
[321976783,1712668718227,1000.0,0.00032772,30]
[321976784,1712668719417,1000.0,0.00032772,30]
[321976785,1712668720369,1000.0,0.00032772,30]
[321976786,1712668721141,1000.0,0.00032772,30]
[321976787,1712668722228,1000.0,0.00032772,30]
[321976788,1712668722478,1000.0,0.00032772,30]
[321976789,1712668723019,1000.0,0.00032772,30]
[321976790,1712668723695,2953.0,0.00032772,30]
[321976791,1712668724107,1000.0,0.00032772,30]
[321976792,1712668727902,172.09,0.00016712,2]
[321976793,1712668732774,179.2,0.00015338,2]
[321976794,1712668734942,2000.0,0.00032772,30]
[321976795,1712668765066,155.0,0.00017908,2]
[321976796,1712668781178,320.06635255,0.00032772,60]
[321976797,1712668801866,1000.0,0.00032772,30]
[321976798,1712668802306,1000.0,0.00032772,30]
[321976799,1712668803039,331.34132613,0.00032772,30]
[321976800,1712668805833,437.13716329,0.00032772,30]
[321976801,1712668865155,156.06585458,0.00032812,30]
[321976802,1712668880106,62450.32494811,0.00032812,30]
[321976803,1712668882903,-296.00785364,0.00018977,2]
[321976804,1712668882929,-164.14681743,0.00018977,2]
[321976805,1712668882948,-785.52907082,0.00018978,2]
[321976806,1712668882970,-150.0,0.00018978,2]
[321976807,1712668882990,-150.0,0.00018978,2]
[321976808,1712668883010,-408.15974753,0.00018979,2]
[321976809,1712668883031,-4467.00819379,0.00018979,2]
[321976810,1712668883052,-5534.18994366,0.00018979,2]
[321976811,1712668883072,-251.044201,0.0001898,2]
[321976812,1712668883091,-3075.40931525,0.0001898,2]
[321976813,1712668883111,-3159.30444615,0.0001898,2]
[321976814,1712668883130,-21099.43225911,0.0001898,2]
[321976815,1712668945842,25000.0,0.00032812,30]
[321976816,1712668946653,2536.05140735,0.00014235,2]
[321976817,1712668950449,150.0,0.00032812,30]
[321976818,1712668950874,150.0,0.00032812,30]
[321976819,1712668951281,150.0,0.00032812,30]
[321976820,1712668958491,1000.0,0.00032812,30]
[321976821,1712668958691,1000.0,0.00032812,30]
[321976822,1712668959042,1000.0,0.00032812,30]
[321976823,1712668959529,1000.0,0.00032812,30]
[321976824,1712668960389,1000.0,0.00032812,30]
[321976825,1712668960772,1000.0,0.00032812,30]
[321976826,1712668961204,1000.0,0.00032812,30]
[321976827,1712668961641,1000.0,0.00032812,30]
[321976828,1712668962113,1000.0,0.00032812,30]
[321976829,1712668962530,1000.0,0.00032812,30]
[321976830,1712668962926,278.0,0.00032812,30]
[321976831,1712668964605,1578.13980373,0.00014235,2]
[321976832,1712668990772,25000.0,0.00032812,30]
[321976833,1712668991328,1371.67568401,0.00014235,2]
[321976834,1712668995020,155.0,0.00014235,2]
[321976835,1712668998151,155.0,0.00014235,2]
[321976836,1712669011145,680.00132697,0.00014235,2]
[321976837,1712669013036,156.92763871,0.00014235,2]
[321976838,1712669015827,306.17221238,0.00014235,2]
[321976839,1712669043393,5983.55575068,0.00032812,30]
[321976840,1712669044909,25000.0,0.00032812,30]
[321976841,1712669048586,-785.52907082,0.00018843,2]
[321976842,1712669048610,-164.14681743,0.00018843,2]
[321976843,1712669048631,-408.15974753,0.00018843,2]
[321976844,1712669048653,-150.0,0.00018844,2]
[321976845,1712669048676,-809.38771434,0.00018844,2]
[321976846,1712669048698,-5534.18994366,0.00018845,2]
[321976847,1712669048719,-443.28065123,0.00018845,2]
[321976848,1712669048739,-4467.00819379,0.00018845,2]
[321976849,1712669048761,-23890.0,0.00018847,2]
[321976850,1712669048783,-405.04059642,0.00018902,2]
[321976851,1712669048807,-3156.75986835,0.00018903,2]
[321976852,1712669048829,-1250.0,0.00019,3]
[321976853,1712669048849,-788.22,0.0001901,2]
[321976854,1712669048870,-200.0,0.00019136,2]
[321976855,1712669048892,-200.0,0.00019168,2]
[321976856,1712669048913,-200.0,0.00019173,2]
[321976857,1712669048934,-373.51,0.00019251,2]
[321976858,1712669048956,-3118.99,0.00019282,2]
[321976859,1712669048978,-836.06,0.00019282,2]
[321976860,1712669048999,-499.99,0.00019282,2]
[321976861,1712669049024,-170.04703513,0.00019536,2]
[321976862,1712669049047,-207.09,0.00019557,2]
[321976863,1712669049069,-1545.92,0.00019557,2]
[321976864,1712669049091,-452.49,0.00019575,2]
[321976865,1712669049113,-167.15,0.00019615,2]
[321976866,1712669049135,-250.31428326,0.00019699,2]
[321976867,1712669049156,-155.0,0.00019898,2]
[321976868,1712669049176,-155.0,0.00019898,2]
[321976869,1712669049197,-1164.50129225,0.00019898,2]
[321976870,1712669049220,-295.64140412,0.00019898,2]
[321976871,1712669049241,-1239.24531074,0.00019898,2]
[321976872,1712669049262,-407.47196267,0.00019898,2]
[321976873,1712669049287,-404.73102028,0.00019898,2]
[321976874,1712669049311,-550.75005717,0.00019898,2]
[321976875,1712669049332,-15902.8678854,0.00019898,2]
[321976876,1712669049355,-155.06552496,0.00019898,2]
[321976877,1712669049377,-342.50720573,0.00019898,2]
[321976878,1712669049398,-23297.98636349,0.00019898,2]
[321976879,1712669049419,-842.11773925,0.00019899,2]
[321976880,1712669049443,-1000.0,0.000199,2]
[321976881,1712669049464,-163.1597,0.000199,2]
[321976882,1712669049485,-100000.0,0.000199,2]
[321976883,1712669049507,-2722.94834882,0.00020047,2]
[321976884,1712669049530,-7594.07922255,0.00020147,2]
[321976885,1712669049558,-298.44,0.00020247,2]
[321976886,1712669049580,-2722.94834882,0.00020288,2]
[321976887,1712669049602,-298.00741745,0.00020293,2]
[321976888,1712669049631,-150.0,0.000203,2]
[321976889,1712669049653,-907.38533165,0.00020319,2]
[321976890,1712669049675,-7594.07922247,0.00020377,2]
[321976891,1712669049697,-500.0,0.00020416,2]
[321976892,1712669049719,-528.55022575,0.00020416,2]
[321976893,1712669049741,-190.1740073,0.00020416,2]
[321976894,1712669050023,-500.0,0.00020417,2]
[321976895,1712669050052,-1852.67,0.00020417,2]
[321976896,1712669050073,-3296.6,0.00020417,2]
[321976897,1712669050093,-3103.3,0.00020417,2]
[321976898,1712669050116,-500.0,0.00020417,2]
[321976899,1712669050137,-633.2,0.00020417,2]
[321976900,1712669050159,-2703.56,0.00020417,2]
[321976901,1712669050182,-538.3,0.00020417,2]
[321976902,1712669050202,-1020.19,0.00020417,2]
[321976903,1712669050225,-500.0,0.00020417,2]
[321976904,1712669050246,-3820.83,0.00020417,2]
[321976905,1712669050266,-500.0,0.00020417,2]
[321976906,1712669050287,-2379.46,0.00020417,2]
[321976907,1712669050313,-500.0,0.00020417,2]
[321976908,1712669050335,-500.0,0.00020417,2]
[321976909,1712669050356,-2996.93,0.00020417,2]
[321976910,1712669050381,-675.92,0.00020417,2]
[321976911,1712669050404,-533.34,0.00020417,2]
[321976912,1712669050426,-8174.18,0.00020417,2]
[321976913,1712669050447,-500.0,0.00020417,2]
[321976914,1712669050468,-1381.84,0.00020417,2]
[321976915,1712669050489,-27.13327809,0.00020417,2]
[321976916,1712669060351,962.0,0.00032812,30]
[321976917,1712669061537,481.0,0.00032812,30]
[321976918,1712669141943,788.0,0.00032764,30]
[321976919,1712669162496,474.12,0.00017569,2]
[321976920,1712669175858,254.2271881,0.00032764,30]
[321976929,1712669256085,289.099999,0.00032764,30]
[321976930,1712669265192,187.0,0.00032764,30]
[321976931,1712669265519,187.0,0.00032764,30]
[321976932,1712669265918,187.0,0.00032764,30]
[321976933,1712669293663,25000.0,0.00032764,30]
[321976934,1712669312233,150.0,0.00032764,30]
[321976940,1712669432531,-387.91590452,0.00019129,2]
[321976941,1712669432590,-854.8607206,0.00019128,2]
[321976942,1712669432698,-956.96982121,0.00019128,2]
[321976943,1712669432710,-1626.72135298,0.00019128,2]
[321976944,1712669432722,-562.4996314,0.00019128,2]
[321976945,1712669432733,-465.9566676,0.00019128,2]
[321976946,1712669432743,-1030.00425479,0.00019129,2]
[321976947,1712669432778,-554.58560878,0.00019129,2]
[321976948,1712669432790,-11942.53211731,0.00019129,2]
[321976949,1712669432799,-443.28065123,0.0001913,2]
[321976950,1712669432808,-785.52907082,0.0001913,2]
[321976951,1712669432817,-164.14681743,0.00019131,2]
[321976952,1712669432826,-744.84606437,0.00019131,2]
[321976953,1712669432835,-408.15974753,0.00019131,2]
[321976954,1712669432846,-165.66404251,0.00019132,2]
[321976955,1712669432855,-809.38771434,0.00019231,2]
[321976956,1712669432864,-5534.18994366,0.00019231,2]
[321976957,1712669432874,-500.0,0.00019233,2]
[321976958,1712669432883,-200.0,0.00019233,2]
[321976959,1712669432893,-150.0,0.00019274,2]
[321976960,1712669432903,-22762.20667419,0.00019275,2]
[321976961,1712669432913,-200.0,0.00019281,2]
[321976962,1712669432922,-196.08,0.00019334,2]
[321976963,1712669432931,-1545.92,0.00019387,2]
[321976964,1712669432941,-3156.75986835,0.00019394,2]
[321976965,1712669432950,-863.16,0.00019394,2]
[321976966,1712669432960,-840.0,0.00019458,2]
[321976967,1712669432969,-1132.71,0.00019492,2]
[321976968,1712669432978,-499.99,0.00019492,2]
[321976969,1712669432987,-3519.42,0.0001956,2]
[321976970,1712669432996,-405.63,0.00019632,2]
[321976971,1712669433005,-10977.97,0.00019632,2]
[321976972,1712669433015,-167.15,0.00019813,2]
[321976973,1712669433024,-474.12,0.00019833,2]
[321976974,1712669433033,-150.0,0.00019952,2]
[321976975,1712669433042,-150.0,0.00019952,2]
[321976976,1712669433052,-1000.0,0.00020047,2]
[321976977,1712669433061,-150.0,0.00020052,2]
[321976978,1712669433070,-150.0,0.00020152,2]
[321976979,1712669433080,-298.00741745,0.00020211,2]
[321976980,1712669433090,-250.31428326,0.00020211,2]
[321976981,1712669433100,-2722.94834882,0.00020217,2]
[321976982,1712669433110,-7594.07922255,0.00020217,2]
[321976983,1712669433121,-1239.24531074,0.00020315,2]
[321976984,1712669433131,-842.11773925,0.00020316,2]
[321976985,1712669433141,-907.38533165,0.00020316,2]
[321976986,1712669433150,-100000.0,0.00020317,2]
[321976987,1712669433160,-303.04564151,0.00020317,2]
[321976988,1712669433169,-165.66404251,0.00020317,2]
[321976989,1712669433180,-12398.81634063,0.00020376,2]
[321976990,1712669433189,-907.38533158,0.00020399,2]
[321976991,1712669433198,-2722.94834882,0.00020411,2]
[321976992,1712669433207,-7594.07922247,0.00020411,2]
[321976993,1712669433217,-500.0,0.00020414,2]
[321976994,1712669433226,-500.0,0.00020414,2]
[321976995,1712669433235,-23297.98636349,0.00020415,2]
[321976996,1712669433244,-155.06552496,0.00020415,2]
[321976997,1712669433253,-373.51,0.00020415,2]
[321976998,1712669433262,-404.73102028,0.00020415,2]
[321976999,1712669433271,-407.47196267,0.00020415,2]
[321977000,1712669433281,-550.75005717,0.00020415,2]
[321977001,1712669433290,-1164.50129225,0.00020415,2]
[321977002,1712669433299,-295.64140412,0.00020415,2]
[321977003,1712669433309,-155.0,0.00020415,2]
[321977004,1712669433318,-155.0,0.00020415,2]
[321977005,1712669433327,-342.50720573,0.00020415,2]
[321977006,1712669433337,-190.1740073,0.00020415,2]
[321977007,1712669433349,-500.0,0.00020415,2]
[321977008,1712669433358,-528.55022575,0.00020415,2]
[321977009,1712669433367,-3296.6,0.00020415,2]
[321977010,1712669433376,-1852.67,0.00020415,2]
[321977011,1712669433386,-2703.56,0.00020415,2]
[321977012,1712669433395,-3103.3,0.00020415,2]
[321977013,1712669433404,-500.0,0.00020415,2]
[321977014,1712669433413,-1020.19,0.00020415,2]
[321977015,1712669433423,-2379.46,0.00020415,2]
[321977016,1712669433434,-3820.83,0.00020415,2]
[321977017,1712669433444,-8174.18,0.00020415,2]
[321977018,1712669433453,-2996.93,0.00020415,2]
[321977019,1712669433463,-3735.51,0.00020415,2]
[321977020,1712669433472,-17240.38,0.00020415,2]